[Event "*** Titled Tuesday Blitz"]
[Site "Chess.com"]
[Date "2021.03.30"]
[Round "9"]
[White "ChessQueen"]
[Black "arminmusovic"]
[Result "0-1"]
[WhiteElo "2702"]
[BlackElo "2588"]
[TimeControl "180+1"]
[EndTime "11:47:39 PDT"]
[Termination "arminmusovic won by resignation"]

1. e4 {[%clk 0:03:00.9]} 1... c6 {[%clk 0:02:58.4]} 2. Nc3 {[%clk 0:03:00.1]}
2... d5 {[%clk 0:02:58.1]} 3. Nf3 {[%clk 0:03:00.5]} 3... dxe4 {[%clk
0:02:58.5]} 4. Nxe4 {[%clk 0:03:00.7]} 4... Nf6 {[%clk 0:02:59.2]} 5. Qe2 {[%clk
0:03:00.3]} 5... Nxe4 {[%clk 0:02:59.6]} 6. Qxe4 {[%clk 0:03:00.6]} 6... Qd5
{[%clk 0:03:00.3]} 7. d3 {[%clk 0:02:53.1]} 7... Qxe4+ {[%clk 0:02:59]} 8. dxe4
{[%clk 0:02:53.5]} 8... g6 {[%clk 0:02:59.2]} 9. Bg5 {[%clk 0:02:46.6]} 9... Bg7
{[%clk 0:02:55.2]} 10. O-O-O {[%clk 0:02:45.5]} 10... Nd7 {[%clk 0:02:54]} 11.
Nd2 {[%clk 0:02:33.5]} 11... h6 {[%clk 0:02:45.9]} 12. Be3 {[%clk 0:02:33.2]}
12... Ne5 {[%clk 0:02:38.1]} 13. f3 {[%clk 0:02:32.4]} 13... Be6 {[%clk
0:02:29.8]} 14. Nb3 {[%clk 0:02:30.6]} 14... O-O {[%clk 0:02:23.9]} 15. Nc5
{[%clk 0:02:25.9]} 15... Bc8 {[%clk 0:02:24.1]} 16. h4 {[%clk 0:02:21.2]} 16...
b6 {[%clk 0:02:20.9]} 17. Nb3 {[%clk 0:02:20.4]} 17... c5 {[%clk 0:02:17.2]} 18.
h5 {[%clk 0:02:04.9]} 18... g5 {[%clk 0:02:12.5]} 19. Be2 {[%clk 0:02:05.2]}
19... Be6 {[%clk 0:02:02.9]} 20. Nd2 {[%clk 0:01:58.5]} 20... Rfd8 {[%clk
0:01:48.7]} 21. a3 {[%clk 0:01:45.1]} 21... Nc6 {[%clk 0:01:38.6]} 22. Ba6
{[%clk 0:01:32.8]} 22... Rab8 {[%clk 0:01:29.5]} 23. c3 {[%clk 0:01:08.2]} 23...
Ne5 {[%clk 0:01:17.7]} 24. Kc2 {[%clk 0:01:00.5]} 24... Kh7 {[%clk 0:00:47.4]}
25. g3 {[%clk 0:00:59.1]} 25... c4 {[%clk 0:00:33.9]} 26. f4 {[%clk 0:00:56.6]}
26... Ng4 {[%clk 0:00:19.8]} 27. Bg1 {[%clk 0:00:56.5]} 27... b5 {[%clk
0:00:20.3]} 28. a4 {[%clk 0:00:49.9]} 28... bxa4 {[%clk 0:00:15.8]} 29. f5
{[%clk 0:00:37.1]} 29... Bc8 {[%clk 0:00:15.6]} 30. Bxc4 {[%clk 0:00:36.6]}
30... a3 {[%clk 0:00:14.7]} 31. bxa3 {[%clk 0:00:34.8]} 31... Bb7 {[%clk
0:00:14.4]} 32. Bxf7 {[%clk 0:00:29.8]} 32... Rdc8 {[%clk 0:00:11.9]} 33. Bg6+
{[%clk 0:00:21.9]} 33... Kh8 {[%clk 0:00:11.6]} 34. f6 {[%clk 0:00:22.5]} 34...
Bxf6 {[%clk 0:00:11.5]} 35. Nb1 {[%clk 0:00:20.3]} 35... Ne5 {[%clk 0:00:10.4]}
36. Bd4 {[%clk 0:00:19.8]} 36... Nxg6 {[%clk 0:00:07.9]} 37. hxg6 {[%clk
0:00:19.8]} 37... Bxe4+ {[%clk 0:00:07.6]} 38. Kd2 {[%clk 0:00:20.4]} 38... Bxh1
{[%clk 0:00:05.9]} 39. Rxh1 {[%clk 0:00:21]} 39... Bxd4 {[%clk 0:00:05.2]} 40.
cxd4 {[%clk 0:00:20.3]} 40... Rb2+ {[%clk 0:00:05]} 41. Kd3 {[%clk 0:00:19.3]}
41... Kg7 {[%clk 0:00:05.1]} 42. Nd2 {[%clk 0:00:18.6]} 42... Kxg6 {[%clk
0:00:01.8]} 43. Nf3 {[%clk 0:00:19]} 43... Rb3+ {[%clk 0:00:02.2]} 44. Ke4
{[%clk 0:00:19.2]} 44... Rxf3 {[%clk 0:00:03.1]} 45. Kxf3 {[%clk 0:00:19.2]}
45... Rc3+ {[%clk 0:00:04]} 46. Ke4 {[%clk 0:00:18.4]} 46... Rxa3 {[%clk
0:00:04.9]} 47. Rg1 {[%clk 0:00:12.8]} 47... h5 {[%clk 0:00:04.6]} 48. Kd5
{[%clk 0:00:10.7]} 48... Re3 {[%clk 0:00:04.8]} 49. Ra1 {[%clk 0:00:09.5]} 49...
Rxg3 {[%clk 0:00:04.2]} 50. Rxa7 {[%clk 0:00:10]} 50... Re3 {[%clk 0:00:04.2]}
51. Ra8 {[%clk 0:00:09.3]} 51... h4 {[%clk 0:00:04.5]} 52. Rg8+ {[%clk
0:00:09.3]} 52... Kf5 {[%clk 0:00:05]} 0-1

[Event "*** Titled Tuesday Blitz"]
[Site "Chess.com"]
[Date "2021.03.30"]
[Round "9"]
[White "mbojan"]
[Black "steka121"]
[Result "1-0"]
[WhiteElo "2676"]
[BlackElo "2422"]
[TimeControl "180+1"]
[EndTime "11:47:39 PDT"]
[Termination "mbojan won by resignation"]

1. g3 {[%clk 0:03:00.9]} 1... d5 {[%clk 0:02:58.9]} 2. Bg2 {[%clk 0:03:01]} 2...
c6 {[%clk 0:02:59.5]} 3. d3 {[%clk 0:03:01.2]} 3... e5 {[%clk 0:02:59.7]} 4. Nd2
{[%clk 0:03:01.5]} 4... Nf6 {[%clk 0:02:59.8]} 5. e4 {[%clk 0:03:01.8]} 5... Bc5
{[%clk 0:02:57.5]} 6. Nh3 {[%clk 0:03:01.4]} 6... Bg4 {[%clk 0:02:53.9]} 7. f3
{[%clk 0:02:58.4]} 7... Bxh3 {[%clk 0:02:50.4]} 8. Bxh3 {[%clk 0:02:59.3]} 8...
Qb6 {[%clk 0:02:47.6]} 9. Kf1 {[%clk 0:02:57.1]} 9... O-O {[%clk 0:02:44.7]} 10.
Kg2 {[%clk 0:02:57.1]} 10... a5 {[%clk 0:02:44.8]} 11. a4 {[%clk 0:02:50.3]}
11... Na6 {[%clk 0:02:40.3]} 12. Qe2 {[%clk 0:02:41.1]} 12... Nc7 {[%clk
0:02:33.3]} 13. Nb3 {[%clk 0:02:36.1]} 13... Bd6 {[%clk 0:02:29.6]} 14. Be3
{[%clk 0:02:33.3]} 14... d4 {[%clk 0:02:22.4]} 15. Bg5 {[%clk 0:02:30.2]} 15...
Be7 {[%clk 0:02:19.3]} 16. Bd2 {[%clk 0:02:11]} 16... Ne6 {[%clk 0:02:04.4]} 17.
Rhb1 {[%clk 0:02:02.4]} 17... Nc5 {[%clk 0:01:59.5]} 18. Nxc5 {[%clk 0:01:15.5]}
18... Bxc5 {[%clk 0:01:54.2]} 19. c3 {[%clk 0:00:51.6]} 19... Rfd8 {[%clk
0:01:48]} 20. b4 {[%clk 0:00:37.5]} 20... axb4 {[%clk 0:01:29]} 21. cxb4 {[%clk
0:00:38.4]} 21... Be7 {[%clk 0:01:29.1]} 22. Kh1 {[%clk 0:00:37.3]} 22... Qc7
{[%clk 0:01:20.9]} 23. Rc1 {[%clk 0:00:30.8]} 23... h6 {[%clk 0:01:10.4]} 24.
Qd1 {[%clk 0:00:29.7]} 24... Qb6 {[%clk 0:01:03.8]} 25. Qb3 {[%clk 0:00:27.8]}
25... Qa6 {[%clk 0:01:01.7]} 26. Bf1 {[%clk 0:00:10.1]} 26... Nd7 {[%clk
0:00:56]} 27. Be2 {[%clk 0:00:10.3]} 27... Nb6 {[%clk 0:00:56]} 28. Bd1 {[%clk
0:00:10.7]} 28... Nc8 {[%clk 0:00:49.4]} 29. Qb1 {[%clk 0:00:09.9]} 29... Nd6
{[%clk 0:00:49]} 30. Bb3 {[%clk 0:00:10.1]} 30... Rf8 {[%clk 0:00:42.4]} 31. Kg2
{[%clk 0:00:08.5]} 31... Qb6 {[%clk 0:00:40.4]} 32. a5 {[%clk 0:00:07.1]} 32...
Qd8 {[%clk 0:00:38.9]} 33. a6 {[%clk 0:00:04.7]} 33... Rxa6 {[%clk 0:00:36.5]}
34. Rxa6 {[%clk 0:00:04.5]} 34... bxa6 {[%clk 0:00:37]} 35. Rxc6 {[%clk
0:00:05.3]} 35... Qa8 {[%clk 0:00:37.2]} 36. Bd5 {[%clk 0:00:05.1]} 36... Qa7
{[%clk 0:00:36.3]} 37. Qa2 {[%clk 0:00:05.1]} 37... Nb5 {[%clk 0:00:35.3]} 38.
Qxa6 {[%clk 0:00:04.7]} 38... Qxa6 {[%clk 0:00:34.7]} 39. Rxa6 {[%clk
0:00:05.6]} 39... Nc3 {[%clk 0:00:34.9]} 40. Bc4 {[%clk 0:00:05.4]} 40... Bxb4
{[%clk 0:00:35]} 41. Ra7 {[%clk 0:00:05.7]} 41... g6 {[%clk 0:00:31.7]} 42. Rb7
{[%clk 0:00:05.5]} 42... Kg7 {[%clk 0:00:31.6]} 43. Rxb4 {[%clk 0:00:04.9]}
43... Ra8 {[%clk 0:00:32.2]} 44. Bxc3 {[%clk 0:00:04.5]} 44... dxc3 {[%clk
0:00:32.3]} 45. Rb1 {[%clk 0:00:05.2]} 45... Ra3 {[%clk 0:00:31.5]} 46. Rc1
{[%clk 0:00:05.4]} 46... f5 {[%clk 0:00:30.3]} 47. Kf2 {[%clk 0:00:05.7]} 47...
Kf6 {[%clk 0:00:30.5]} 48. Ke3 {[%clk 0:00:06.2]} 48... c2 {[%clk 0:00:30.5]}
49. Rxc2 {[%clk 0:00:06.2]} 49... Ra1 {[%clk 0:00:31.1]} 50. Re2 {[%clk
0:00:06]} 50... Rc1 {[%clk 0:00:31.3]} 51. Ra2 {[%clk 0:00:06.1]} 51... g5
{[%clk 0:00:30.1]} 52. Ra6+ {[%clk 0:00:05.2]} 52... Kg7 {[%clk 0:00:29.7]} 53.
exf5 {[%clk 0:00:06.1]} 53... h5 {[%clk 0:00:29.3]} 54. f6+ {[%clk 0:00:06.3]}
1-0

[Event "*** Titled Tuesday Blitz"]
[Site "Chess.com"]
[Date "2021.03.30"]
[Round "9"]
[White "Aslanov_Umid"]
[Black "Skat2704"]
[Result "0-1"]
[WhiteElo "2429"]
[BlackElo "2626"]
[TimeControl "180+1"]
[EndTime "11:47:42 PDT"]
[Termination "Skat2704 won by resignation"]

1. e4 {[%clk 0:03:00.9]} 1... c5 {[%clk 0:02:57.6]} 2. Nf3 {[%clk 0:03:00.8]}
2... Nc6 {[%clk 0:02:56.4]} 3. d4 {[%clk 0:03:01.3]} 3... cxd4 {[%clk
0:02:55.8]} 4. Nxd4 {[%clk 0:03:02.2]} 4... Nf6 {[%clk 0:02:55.3]} 5. Nc3 {[%clk
0:03:02.3]} 5... e6 {[%clk 0:02:53.4]} 6. Ndb5 {[%clk 0:03:01.2]} 6... Bb4
{[%clk 0:02:52.3]} 7. a3 {[%clk 0:03:00.6]} 7... Bxc3+ {[%clk 0:02:51.5]} 8.
Nxc3 {[%clk 0:03:01.5]} 8... d5 {[%clk 0:02:50.7]} 9. exd5 {[%clk 0:03:02.4]}
9... exd5 {[%clk 0:02:50.2]} 10. Bd3 {[%clk 0:03:02.3]} 10... Bg4 {[%clk
0:02:47.7]} 11. Be2 {[%clk 0:02:56.6]} 11... Bf5 {[%clk 0:02:45.3]} 12. O-O
{[%clk 0:02:53.5]} 12... O-O {[%clk 0:02:43.6]} 13. Bf3 {[%clk 0:02:42.8]} 13...
d4 {[%clk 0:02:39.9]} 14. Ne2 {[%clk 0:02:42.8]} 14... d3 {[%clk 0:02:39.3]} 15.
cxd3 {[%clk 0:02:42.8]} 15... Bxd3 {[%clk 0:02:36.2]} 16. Bg5 {[%clk 0:02:42.8]}
16... Bc4 {[%clk 0:02:27.5]} 17. Qc2 {[%clk 0:02:37.1]} 17... Bd3 {[%clk
0:02:24.1]} 18. Qd1 {[%clk 0:02:24.1]} 18... Ne5 {[%clk 0:02:20.1]} 19. Re1
{[%clk 0:01:47.2]} 19... Nxf3+ {[%clk 0:02:16.8]} 20. gxf3 {[%clk 0:01:48.1]}
20... Bg6 {[%clk 0:02:11.7]} 21. Qxd8 {[%clk 0:01:44.9]} 21... Rfxd8 {[%clk
0:02:12.6]} 22. Red1 {[%clk 0:01:44.6]} 22... Rac8 {[%clk 0:02:04.9]} 23. Rac1
{[%clk 0:01:43.6]} 23... h6 {[%clk 0:01:54.7]} 24. Bxf6 {[%clk 0:01:40.7]} 24...
gxf6 {[%clk 0:01:55.6]} 25. Nc3 {[%clk 0:01:41]} 25... Kf8 {[%clk 0:01:50.1]}
26. Kg2 {[%clk 0:01:34.8]} 26... Ke7 {[%clk 0:01:46.9]} 27. Kg3 {[%clk
0:01:29.6]} 27... Bf5 {[%clk 0:01:45.4]} 28. Kf4 {[%clk 0:01:17]} 28... Be6
{[%clk 0:01:41.7]} 29. Ne4 {[%clk 0:01:05.9]} 29... f5 {[%clk 0:01:35.9]} 30.
Ng3 {[%clk 0:01:03.7]} 30... Rxd1 {[%clk 0:01:27.3]} 31. Rxd1 {[%clk 0:01:04.6]}
31... Rc4+ {[%clk 0:01:26.5]} 32. Ke3 {[%clk 0:00:58.9]} 32... f4+ {[%clk
0:01:25.8]} 33. Kd3 {[%clk 0:00:57.8]} 33... fxg3 {[%clk 0:01:25.7]} 34. fxg3
{[%clk 0:00:57.6]} 34... Rc6 {[%clk 0:01:25.5]} 35. Re1 {[%clk 0:00:56.8]} 35...
Kd6 {[%clk 0:01:23.5]} 36. g4 {[%clk 0:00:55.2]} 36... Kd5 {[%clk 0:01:21.4]}
37. h3 {[%clk 0:00:53.8]} 37... Rb6 {[%clk 0:01:20.3]} 38. b4 {[%clk 0:00:53.8]}
38... a5 {[%clk 0:01:18.7]} 39. f4 {[%clk 0:00:52.6]} 39... axb4 {[%clk
0:01:17.8]} 40. f5 {[%clk 0:00:44.4]} 40... Bd7 {[%clk 0:01:14.9]} 41. axb4
{[%clk 0:00:44.1]} 41... Rxb4 {[%clk 0:01:14.5]} 42. Kc3 {[%clk 0:00:45]} 42...
Kc5 {[%clk 0:00:57.7]} 43. Re7 {[%clk 0:00:37]} 43... Rc4+ {[%clk 0:00:55]} 44.
Kd3 {[%clk 0:00:34]} 44... Bb5 {[%clk 0:00:52.5]} 45. Kd2 {[%clk 0:00:15.1]}
45... Rd4+ {[%clk 0:00:51.1]} 46. Kc2 {[%clk 0:00:14]} 46... Rd7 {[%clk
0:00:49.8]} 47. Re5+ {[%clk 0:00:13.5]} 47... Kb4 {[%clk 0:00:47.3]} 48. h4
{[%clk 0:00:13.1]} 48... Bc4 {[%clk 0:00:42.8]} 49. g5 {[%clk 0:00:12.6]} 49...
hxg5 {[%clk 0:00:42.6]} 50. hxg5 {[%clk 0:00:13.5]} 50... b5 {[%clk 0:00:42.5]}
51. Re4 {[%clk 0:00:12.9]} 51... Kc5 {[%clk 0:00:36.6]} 52. Rf4 {[%clk
0:00:12.2]} 52... b4 {[%clk 0:00:35.1]} 53. g6 {[%clk 0:00:11.8]} 53... fxg6
{[%clk 0:00:34.1]} 54. fxg6 {[%clk 0:00:12.7]} 54... b3+ {[%clk 0:00:33.3]} 55.
Kb2 {[%clk 0:00:12.5]} 55... Rd2+ {[%clk 0:00:32.7]} 56. Kc1 {[%clk 0:00:11.2]}
56... Rg2 {[%clk 0:00:32.2]} 57. Rf5+ {[%clk 0:00:08.3]} 57... Kb4 {[%clk
0:00:31.2]} 58. Rf6 {[%clk 0:00:07.1]} 58... b2+ {[%clk 0:00:30]} 59. Kd1 {[%clk
0:00:07.3]} 0-1

[Event "*** Titled Tuesday Blitz"]
[Site "Chess.com"]
[Date "2021.03.30"]
[Round "9"]
[White "AlexOstrovskiy"]
[Black "enriquetejedor"]
[Result "1-0"]
[WhiteElo "2747"]
[BlackElo "2612"]
[TimeControl "180+1"]
[EndTime "11:47:43 PDT"]
[Termination "AlexOstrovskiy won by resignation"]

1. d4 {[%clk 0:03:00.9]} 1... c5 {[%clk 0:02:54.1]} 2. e3 {[%clk 0:02:59.8]}
2... cxd4 {[%clk 0:02:53.3]} 3. exd4 {[%clk 0:03:00.7]} 3... d5 {[%clk
0:02:54.2]} 4. Bd3 {[%clk 0:02:58.3]} 4... Nf6 {[%clk 0:02:55.1]} 5. c3 {[%clk
0:02:57.7]} 5... Nc6 {[%clk 0:02:48.6]} 6. Bf4 {[%clk 0:02:57]} 6... Bg4 {[%clk
0:02:47.2]} 7. Qb3 {[%clk 0:02:51.4]} 7... Qd7 {[%clk 0:02:39.9]} 8. Nd2 {[%clk
0:02:47.9]} 8... e6 {[%clk 0:02:29]} 9. Ngf3 {[%clk 0:02:46.7]} 9... a6 {[%clk
0:02:28.1]} 10. O-O {[%clk 0:02:42.1]} 10... Bxf3 {[%clk 0:02:27.4]} 11. Nxf3
{[%clk 0:02:43]} 11... Be7 {[%clk 0:02:26.4]} 12. Rae1 {[%clk 0:02:35.8]} 12...
O-O {[%clk 0:02:11.7]} 13. Ne5 {[%clk 0:02:31.9]} 13... Nxe5 {[%clk 0:02:10.7]}
14. dxe5 {[%clk 0:02:32.8]} 14... Ne8 {[%clk 0:02:10]} 15. Qc2 {[%clk
0:02:30.3]} 15... f5 {[%clk 0:02:00.8]} 16. exf6 {[%clk 0:02:29.1]} 16... Nxf6
{[%clk 0:01:59.6]} 17. Bg5 {[%clk 0:02:24.2]} 17... Bd6 {[%clk 0:01:56.5]} 18.
g3 {[%clk 0:02:20]} 18... Rae8 {[%clk 0:01:50.1]} 19. c4 {[%clk 0:02:15.6]}
19... dxc4 {[%clk 0:01:27.9]} 20. Bxc4 {[%clk 0:02:11.2]} 20... Nd5 {[%clk
0:01:25.6]} 21. Rd1 {[%clk 0:02:07.8]} 21... Rf5 {[%clk 0:01:17.2]} 22. Bc1
{[%clk 0:02:04.4]} 22... Rc8 {[%clk 0:01:03.2]} 23. Qe4 {[%clk 0:01:57.9]} 23...
Re5 {[%clk 0:00:55.8]} 24. Qd4 {[%clk 0:01:39.4]} 24... b5 {[%clk 0:00:47.4]}
25. Bb3 {[%clk 0:01:39.1]} 25... Bb8 {[%clk 0:00:43.7]} 26. Bf4 {[%clk
0:01:28.2]} 26... Rf5 {[%clk 0:00:37.7]} 27. Bxb8 {[%clk 0:01:28.1]} 27... Rxb8
{[%clk 0:00:37.5]} 28. Rfe1 {[%clk 0:01:28.7]} 28... Rbf8 {[%clk 0:00:26.2]} 29.
Rxe6 {[%clk 0:01:20.8]} 29... Qxe6 {[%clk 0:00:27.1]} 30. Bxd5 {[%clk
0:01:20.6]} 30... Rxd5 {[%clk 0:00:26.8]} 31. Qxd5 {[%clk 0:01:21.5]} 31... Qxd5
{[%clk 0:00:27.3]} 32. Rxd5 {[%clk 0:01:22.4]} 32... Rc8 {[%clk 0:00:25.2]} 33.
Rd2 {[%clk 0:01:18.5]} 33... b4 {[%clk 0:00:22.9]} 34. b3 {[%clk 0:01:04.8]}
34... Rc1+ {[%clk 0:00:11.2]} 35. Kg2 {[%clk 0:01:05]} 35... Ra1 {[%clk
0:00:09]} 36. h4 {[%clk 0:01:05.1]} 36... Kf7 {[%clk 0:00:08.7]} 37. Kf3 {[%clk
0:01:05.1]} 37... a5 {[%clk 0:00:09.1]} 38. Kf4 {[%clk 0:01:05.1]} 38... h6
{[%clk 0:00:08.4]} 39. h5 {[%clk 0:01:04.9]} 39... Rh1 {[%clk 0:00:07.6]} 40. g4
{[%clk 0:01:03.8]} 40... Rh3 {[%clk 0:00:07.7]} 41. Rd5 {[%clk 0:01:00.9]} 41...
a4 {[%clk 0:00:08]} 42. f3 {[%clk 0:01:00.1]} 42... a3 {[%clk 0:00:04.6]} 43.
Rd7+ {[%clk 0:00:58.2]} 43... Kf6 {[%clk 0:00:03.2]} 44. Rb7 {[%clk 0:00:59.1]}
44... Rh2 {[%clk 0:00:02.7]} 45. Rb6+ {[%clk 0:00:59.2]} 45... Kf7 {[%clk
0:00:02.5]} 46. Rxb4 {[%clk 0:00:58.7]} 46... Rxa2 {[%clk 0:00:02.2]} 47. Ra4
{[%clk 0:00:58.7]} 47... Ra1 {[%clk 0:00:02.1]} 48. Kf5 {[%clk 0:00:57.9]} 48...
a2 {[%clk 0:00:01.9]} 49. f4 {[%clk 0:00:58.3]} 49... Kg8 {[%clk 0:00:01.5]} 50.
Kg6 {[%clk 0:00:55.7]} 50... Kf8 {[%clk 0:00:01.9]} 51. g5 {[%clk 0:00:48.9]}
51... hxg5 {[%clk 0:00:02.8]} 52. fxg5 {[%clk 0:00:49.8]} 52... Rb1 {[%clk
0:00:02.1]} 53. Rxa2 {[%clk 0:00:49.1]} 53... Rxb3 {[%clk 0:00:02.5]} 54. Ra8+
{[%clk 0:00:49.7]} 54... Ke7 {[%clk 0:00:01.9]} 55. Kxg7 {[%clk 0:00:50.3]}
55... Rb7 {[%clk 0:00:01.9]} 56. g6 {[%clk 0:00:46.9]} 56... Ke6+ {[%clk
0:00:01.5]} 57. Kh6 {[%clk 0:00:41.9]} 57... Kf6 {[%clk 0:00:01.5]} 58. Rf8+
{[%clk 0:00:39.8]} 58... Ke6 {[%clk 0:00:01.6]} 59. g7 {[%clk 0:00:39.6]} 59...
Rb6 {[%clk 0:00:01.6]} 60. g8=Q+ {[%clk 0:00:38.5]} 60... Ke7+ {[%clk 0:00:02]}
61. Qg6 {[%clk 0:00:32.1]} 61... Rf6 {[%clk 0:00:01.2]} 62. Qxf6+ {[%clk
0:00:31.8]} 1-0

[Event "*** Titled Tuesday Blitz"]
[Site "Chess.com"]
[Date "2021.03.30"]
[Round "9"]
[White "jacky72"]
[Black "Sweafty"]
[Result "1/2-1/2"]
[WhiteElo "2710"]
[BlackElo "2562"]
[TimeControl "180+1"]
[EndTime "11:47:44 PDT"]
[Termination "Game drawn - insufficient material"]

1. d4 {[%clk 0:03:00.9]} 1... d6 {[%clk 0:02:56.9]} 2. c4 {[%clk 0:03:00.8]}
2... Nd7 {[%clk 0:02:56.9]} 3. Nf3 {[%clk 0:03:00.8]} 3... e5 {[%clk 0:02:56.7]}
4. g3 {[%clk 0:03:01.3]} 4... Ngf6 {[%clk 0:02:57]} 5. Bg2 {[%clk 0:03:00.8]}
5... Be7 {[%clk 0:02:57.5]} 6. O-O {[%clk 0:03:00.9]} 6... O-O {[%clk 0:02:58]}
7. dxe5 {[%clk 0:03:00.9]} 7... dxe5 {[%clk 0:02:57.2]} 8. b3 {[%clk 0:03:00.1]}
8... c6 {[%clk 0:02:56.8]} 9. Bb2 {[%clk 0:03:00.1]} 9... Qc7 {[%clk 0:02:57.5]}
10. Nc3 {[%clk 0:03:00.5]} 10... b6 {[%clk 0:02:51]} 11. Qc2 {[%clk 0:02:56.6]}
11... Bb7 {[%clk 0:02:50.2]} 12. Rfd1 {[%clk 0:02:54.6]} 12... Rad8 {[%clk
0:02:48.4]} 13. Nh4 {[%clk 0:02:52.8]} 13... g6 {[%clk 0:02:44.7]} 14. Rd2
{[%clk 0:02:46.4]} 14... Nc5 {[%clk 0:02:27.7]} 15. Rad1 {[%clk 0:02:45.4]}
15... Rxd2 {[%clk 0:02:26.8]} 16. Rxd2 {[%clk 0:02:45.6]} 16... Rd8 {[%clk
0:02:18.7]} 17. e3 {[%clk 0:02:42.5]} 17... Rxd2 {[%clk 0:02:03.8]} 18. Qxd2
{[%clk 0:02:42.3]} 18... Qd8 {[%clk 0:01:57.6]} 19. Qxd8+ {[%clk 0:02:39.9]}
19... Bxd8 {[%clk 0:01:58.5]} 20. Nb5 {[%clk 0:02:40.5]} 20... cxb5 {[%clk
0:01:48.4]} 21. Bxb7 {[%clk 0:02:30.4]} 21... Nxb7 {[%clk 0:01:49.3]} 22. cxb5
{[%clk 0:02:28.5]} 22... Nd7 {[%clk 0:01:45]} 23. Nf3 {[%clk 0:02:28.3]} 23...
Bc7 {[%clk 0:01:44.9]} 24. Nd2 {[%clk 0:02:25.1]} 24... f6 {[%clk 0:01:44.6]}
25. f4 {[%clk 0:02:23.9]} 25... Kf7 {[%clk 0:01:44.6]} 26. Kf2 {[%clk
0:02:22.8]} 26... Ke6 {[%clk 0:01:44.7]} 27. Ke2 {[%clk 0:02:20.5]} 27... Nd6
{[%clk 0:01:42.6]} 28. a4 {[%clk 0:02:19.8]} 28... Nc5 {[%clk 0:01:42.9]} 29.
fxe5 {[%clk 0:02:17.1]} 29... fxe5 {[%clk 0:01:42.7]} 30. Kf3 {[%clk 0:02:12.6]}
30... Nf5 {[%clk 0:01:22.8]} 31. g4 {[%clk 0:02:04]} 31... Ne7 {[%clk
0:01:20.4]} 32. e4 {[%clk 0:01:59.1]} 32... Nc8 {[%clk 0:01:14.5]} 33. Ba3
{[%clk 0:01:53.3]} 33... Nd6 {[%clk 0:01:11.2]} 34. Ke3 {[%clk 0:01:51.8]} 34...
Bd8 {[%clk 0:01:10.7]} 35. Bxc5 {[%clk 0:01:51.7]} 35... bxc5 {[%clk 0:01:10.6]}
36. Kd3 {[%clk 0:01:52.6]} 36... Bg5 {[%clk 0:01:10.3]} 37. Nb1 {[%clk
0:01:48.3]} 37... h5 {[%clk 0:01:01.6]} 38. gxh5 {[%clk 0:01:47.3]} 38... gxh5
{[%clk 0:01:01.9]} 39. Nc3 {[%clk 0:01:48.2]} 39... Bf4 {[%clk 0:00:59]} 40. h3
{[%clk 0:01:48]} 40... h4 {[%clk 0:00:58.5]} 41. Nd5 {[%clk 0:01:24.2]} 41...
Nf7 {[%clk 0:00:58.7]} 42. a5 {[%clk 0:01:22.2]} 42... Kd6 {[%clk 0:00:51.5]}
43. a6 {[%clk 0:01:15.2]} 43... Nd8 {[%clk 0:00:41.8]} 44. Kc4 {[%clk
0:00:58.4]} 44... Bg3 {[%clk 0:00:42]} 45. b6 {[%clk 0:00:53.3]} 45... axb6
{[%clk 0:00:40.1]} 46. Kb5 {[%clk 0:00:53.8]} 46... Nc6 {[%clk 0:00:37.3]} 47.
Kxb6 {[%clk 0:00:49]} 47... c4 {[%clk 0:00:37.7]} 48. bxc4 {[%clk 0:00:46.5]}
48... Bf2+ {[%clk 0:00:38.2]} 49. Kb7 {[%clk 0:00:47]} 49... Na5+ {[%clk
0:00:38.6]} 50. Kb8 {[%clk 0:00:45.2]} 50... Nxc4 {[%clk 0:00:39.5]} 51. a7
{[%clk 0:00:44.3]} 51... Bxa7+ {[%clk 0:00:39.2]} 52. Kxa7 {[%clk 0:00:45.2]}
52... Nd2 {[%clk 0:00:39.8]} 53. Ne3 {[%clk 0:00:29.9]} 53... Kc5 {[%clk
0:00:33.7]} 54. Nf5 {[%clk 0:00:28.2]} 54... Nf3 {[%clk 0:00:34]} 55. Kb7 {[%clk
0:00:26.3]} 55... Kc4 {[%clk 0:00:33.2]} 56. Kc6 {[%clk 0:00:26.5]} 56... Kd3
{[%clk 0:00:28.1]} 57. Kd5 {[%clk 0:00:26.5]} 57... Ke2 {[%clk 0:00:28.7]} 58.
Nxh4 {[%clk 0:00:18]} 58... Nxh4 {[%clk 0:00:29.6]} 59. Kxe5 {[%clk 0:00:18.8]}
59... Kf3 {[%clk 0:00:29.7]} 60. Kd5 {[%clk 0:00:17.9]} 60... Kg3 {[%clk
0:00:26.8]} 61. e5 {[%clk 0:00:18.2]} 61... Ng6 {[%clk 0:00:26.7]} 62. e6 {[%clk
0:00:18.1]} 62... Nf4+ {[%clk 0:00:27]} 63. Ke5 {[%clk 0:00:18.4]} 63... Nxe6
{[%clk 0:00:27.9]} 64. h4 {[%clk 0:00:18.4]} 64... Ng7 {[%clk 0:00:23]} 65. h5
{[%clk 0:00:18.5]} 65... Nxh5 {[%clk 0:00:22.9]} 1/2-1/2